bitfinex/quotes_ETHUSD_20241030
["timestamp","ask_amount","ask_price","bid_price","bid_amount"]
[1730293263244,0.8134,2683.7,2683.3,3.72672]
[1730293263567,4.53968,2683.7,2683.2,3.72682]
[1730293263886,0.7562,2683.2,2682.8,7.30440663]
[1730293264044,0.7562,2683.2,2682.5,3.65157215]
[1730293264379,0.7562,2683.2,2682.6,3.72761]
[1730293264889,0.7562,2683.2,2682.8,3.72734]
[1730293265190,0.7562,2683.2,2682.9,3.72729]
[1730293265355,0.8117,2683.6,2683.1,3.57702663]
[1730293265764,0.8117,2683.6,2683.5,3.72647]
[1730293265947,0.8117,2683.6,2683.4,3.72659]
[1730293266623,0.8117,2683.6,2683.4,7.4531]
[1730293266881,0.8117,2683.6,2683.4,3.72651]
[1730293267364,0.8117,2683.6,2683.2,3.72677]
[1730293267559,0.8117,2683.6,2681.8,3.94081738]
[1730293267560,4.53803,2683.6,2682.6,3.72765]
[1730293267763,0.8117,2683.6,2683.1,3.727]
[1730293267970,0.8117,2683.6,2683.3,3.72673]
[1730293268498,0.8117,2683.6,2683.3,3.72666]
[1730293268852,0.8117,2683.6,2683.2,3.72689]
[1730293269088,0.8117,2683.6,2683.2,3.72681]
[1730293269464,0.8117,2683.6,2683.1,3.57702663]
[1730293269695,0.8117,2683.6,2683.4,3.72661]
[1730293269865,0.8117,2683.6,2683.3,3.72664]
[1730293270065,3.72586,2684.0,2683.5,3.72635]
[1730293270302,0.7871,2684.0,2683.7,3.72619]
[1730293270512,0.7871,2684.0,2683.4,3.57702663]
[1730293270513,0.6383,2684.0,2683.5,3.72647]
[1730293270873,0.6383,2684.0,2683.6,3.72633]
[1730293271378,3.6383,2684.0,2683.6,3.72633]
[1730293271712,3.6383,2684.0,2683.4,7.30361663]
[1730293271713,4.36409,2684.0,2683.5,3.72646]
[1730293272612,4.36409,2684.0,2683.6,3.72632]
[1730293272763,0.6383,2684.0,2683.7,3.72618]
[1730293273203,0.6383,2684.0,2683.7,8.04837663]
[1730293273504,0.8238,2684.3,2683.7,4.32227663]
[1730293273805,0.8238,2684.6,2684.2,3.7255]
[1730293273964,0.8238,2684.6,2684.1,7.30265663]
[1730293273965,4.54876,2684.6,2684.1,7.30265663]
[1730293274171,3.7251,2684.5,2684.1,7.30265663]
[1730293274773,0.8238,2684.6,2684.3,3.72536]
[1730293275002,0.8238,2684.6,2684.1,7.30265663]
[1730293275003,3.8238,2684.6,2684.1,7.30265663]
[1730293275179,3.8238,2684.6,2684.3,3.72534]
[1730293275569,0.8238,2684.6,2684.4,3.72514]
[1730293275792,0.8238,2684.6,2684.4,3.57702663]
[1730293276400,0.8238,2684.6,2684.4,7.30221663]
[1730293276580,3.7849,2684.8,2684.4,7.30221663]
[1730293276784,0.7849,2684.8,2684.4,8.40488829]
[1730293276985,3.7243,2685.1,2684.4,8.40488829]
[1730293276986,0.8151,2685.1,2684.7,7.30183663]
[1730293277189,0.8151,2685.1,2685.0,3.57702663]
[1730293277383,0.7644,2685.4,2685.0,7.30141663]
[1730293277591,0.7644,2685.4,2685.3,3.57702663]
[1730293278226,0.7644,2685.7,2685.3,3.57702663]
[1730293278376,0.8132,2686.3,2685.6,3.57702663]
[1730293278576,0.8132,2686.3,2686.1,3.57702663]
[1730293278814,4.53579,2686.3,2686.1,3.57702663]
[1730293279014,0.8132,2686.3,2686.1,3.57702663]
[1730293279187,0.7559,2686.9,2686.1,3.57702663]
[1730293279394,3.72234,2686.5,2686.1,3.57702663]
[1730293279926,3.72212,2686.7,2686.1,3.57702663]
[1730293280083,4.094392,2686.6,2686.1,3.57702663]
[1730293280281,0.372212,2686.6,2686.4,3.57702663]
[1730293280481,0.372212,2686.6,2686.2,3.72267]
[1730293280482,3.372212,2686.6,2686.1,4.15356317]
[1730293280711,0.7754,2685.9,2685.2,4.15356317]
[1730293280914,3.0,2685.7,2685.2,4.15356317]
[1730293281123,3.72387,2685.4,2684.9,4.15356317]
[1730293281307,3.72412,2685.2,2684.9,4.15356317]
[1730293281905,0.8016,2685.3,2684.9,4.15356317]
[1730293282231,3.0,2685.4,2684.9,4.15356317]
[1730293282435,3.8097,2685.6,2685.2,4.15356317]
[1730293282724,0.8097,2685.6,2685.5,4.15356317]
[1730293283273,3.0,2685.8,2685.5,4.15356317]
[1730293283504,6.7233,2685.8,2685.5,4.15356317]
[1730293283778,3.787,2686.0,2685.5,7.87717317]
[1730293284014,0.787,2686.0,2685.8,4.15356317]
[1730293284195,0.787,2686.0,2685.5,1.16009732]
[1730293284196,4.51001,2686.0,2685.5,4.15356317]
[1730293284683,3.72328,2685.8,2685.2,4.15356317]
[1730293284892,3.72328,2685.8,2685.2,7.87755317]
[1730293285287,7.44666,2685.8,2685.2,7.87755317]
[1730293285500,1.238001,2686.0,2685.3,3.72396]
[1730293285705,1.238001,2686.0,2685.5,4.15356317]
[1730293285706,3.72346,2685.7,2685.5,4.15356317]
[1730293285920,4.1469401,2685.9,2685.5,4.15356317]
[1730293286121,7.8702101,2685.9,2685.5,4.15356317]
[1730293286425,4.1469401,2685.9,2685.5,4.15356317]
[1730293286655,0.787,2686.0,2685.6,3.72356]
[1730293287131,0.787,2686.0,2685.8,4.15356317]
[1730293287445,3.787,2686.0,2685.5,4.15356317]
[1730293287731,3.72344,2685.7,2685.2,4.15356317]
[1730293288234,3.72341,2685.8,2685.2,7.87755317]
[1730293288534,3.72354,2685.7,2685.2,4.15356317]
[1730293288895,7.49182,2685.6,2684.9,4.15356317]
[1730293289095,3.72371,2685.5,2684.9,4.15356317]
[1730293289290,3.7682,2685.6,2685.0,3.72436]
[1730293289507,0.7682,2685.6,2685.2,7.87767317]
[1730293289802,0.7682,2685.6,2685.2,4.15356317]
[1730293290003,4.14502,2685.6,2685.2,4.15356317]
[1730293290311,1.14502,2685.6,2685.2,7.87758317]
[1730293290641,4.14502,2685.6,2685.0,3.7243]
[1730293290833,7.49183,2685.6,2685.0,3.7243]
[1730293291136,3.7238,2685.5,2684.8,7.44925]
[1730293291336,3.7238,2685.5,2684.9,3.7245]
[1730293291541,7.49183,2685.6,2685.0,3.72438]
[1730293291828,0.749183,2685.5,2685.0,3.72438]
[1730293292038,0.749183,2685.5,2685.0,3.72431]
[1730293292402,0.749183,2685.5,2685.1,3.72425]
[1730293292613,0.749183,2685.5,2685.0,3.72431]
[1730293292818,0.7682,2685.6,2685.2,3.72409]
[1730293293045,0.7682,2685.6,2685.0,3.72429]
[1730293293259,0.7682,2685.6,2684.6,0.5089]
[1730293293466,4.50699,2685.2,2684.5,3.72497]
[1730293293626,4.50699,2685.2,2684.4,3.72522]
[1730293293823,0.8221,2684.8,2684.2,3.7254]
[1730293294050,0.8221,2684.8,2684.3,3.72527]
[1730293294523,0.8221,2684.8,2684.5,3.725]
[1730293294967,0.8221,2684.8,2684.6,3.72494]
[1730293295123,0.8221,2684.8,2684.5,3.725]
[1730293295669,0.8221,2684.8,2684.4,3.72522]
[1730293295959,1.276751,2684.8,2684.3,3.72527]
[1730293296163,1.276751,2684.8,2684.4,3.7252]
[1730293296351,1.276751,2684.8,2684.5,3.72508]
[1730293296521,0.8221,2684.8,2684.5,3.72508]
[1730293296727,0.8221,2684.8,2684.3,3.72527]
[1730293297059,0.8221,2684.8,2684.5,3.72505]
[1730293297245,0.8221,2684.8,2684.4,3.72513]
[1730293297758,0.8221,2684.8,2684.6,3.72486]
[1730293297924,0.8221,2684.8,2684.7,3.72481]
[1730293298121,0.7548,2685.2,2684.8,3.7246]
[1730293298328,0.7548,2685.2,2684.0,4.23463]
[1730293298329,0.7548,2685.2,2685.0,3.72429]
[1730293298766,0.7548,2685.2,2684.8,3.72455]
[1730293299057,0.7548,2685.2,2684.9,3.72446]
[1730293299230,0.7548,2685.2,2684.8,3.72455]
[1730293299435,0.7548,2685.2,2684.6,3.72487]
[1730293299640,0.7548,2685.2,2684.7,3.72478]
[1730293300319,0.7548,2685.2,2684.9,3.72452]
[1730293300526,0.7548,2685.2,2685.1,3.72425]
[1730293300730,3.0,2685.7,2685.1,7.4485]
[1730293300929,0.372342,2685.6,2685.1,3.72425]
[1730293301171,0.7735,2685.5,2684.4,4.15356317]
[1730293301326,3.72413,2685.2,2684.5,3.72497]
[1730293301534,3.72446,2685.0,2684.3,3.72525]
[1730293301751,0.7735,2685.1,2684.1,0.5089]
[1730293301957,3.72446,2685.0,2684.3,3.72536]
[1730293302144,4.174336,2684.9,2684.3,3.72536]
[1730293302676,4.174336,2684.9,2684.3,7.45062]
[1730293302971,0.449796,2684.9,2684.4,3.72522]
[1730293303160,4.49776,2685.1,2684.4,3.72522]
[1730293303336,3.72445,2685.0,2684.4,3.72522]
[1730293303540,4.49776,2685.1,2684.3,3.72526]
[1730293303736,0.7735,2685.1,2684.7,3.72473]
[1730293304336,0.7735,2685.1,2685.0,3.72439]
[1730293304964,0.7735,2685.1,2684.8,7.44919]
[1730293305174,0.7735,2685.1,2685.0,3.72439]
[1730293305471,0.01,2685.9,2685.0,3.72439]
[1730293305472,4.53455,2685.5,2685.0,3.72432]
[1730293306082,0.8108,2685.5,2685.0,3.72432]
[1730293306239,0.8108,2685.5,2684.6,7.44968]
[1730293306583,0.8108,2685.5,2684.8,3.72459]
[1730293306584,3.72398,2685.3,2684.8,3.72459]
[1730293306734,0.8108,2685.1,2684.6,3.72494]
[1730293306936,0.8108,2685.1,2684.4,4.15356317]
[1730293307136,0.8108,2685.1,2685.0,3.72439]
[1730293307571,0.8108,2685.1,2684.8,3.72466]
[1730293307770,0.8108,2685.1,2684.7,3.7248]
[1730293307971,0.8108,2685.1,2684.8,3.72463]
[1730293309382,0.8108,2685.1,2685.0,3.72439]
[1730293310194,0.8294,2685.6,2685.1,3.72419]
[1730293310394,0.8294,2685.6,2685.2,3.72403]
[1730293310559,0.8294,2685.6,2685.3,3.72391]
[1730293311348,0.8294,2685.6,2685.4,3.72383]
[1730293311547,0.8294,2685.6,2685.4,3.72384]
[1730293311774,0.8294,2685.6,2685.5,3.7237]
[1730293313288,0.8294,2685.6,2685.3,3.72384]
[1730293313510,3.0,2686.0,2685.6,3.72355]
[1730293313800,0.7604,2685.9,2685.6,3.72355]
[1730293313996,0.7604,2685.9,2685.4,3.72383]
[1730293314404,0.7604,2685.9,2685.3,3.72395]
[1730293314580,1.5759673,2685.9,2685.3,3.72395]
[1730293314776,1.5759673,2685.9,2685.1,3.72415]
[1730293314989,0.7887,2685.8,2685.2,3.72407]
[1730293315179,0.7887,2685.8,2685.2,3.72405]
[1730293315783,0.7699,2686.4,2685.2,0.5089]
[1730293315982,3.72265,2686.3,2685.5,3.72362]
[1730293316209,3.72265,2686.3,2685.6,3.72352]
[1730293316514,3.72265,2686.3,2685.5,7.44724]
[1730293316724,0.7699,2686.4,2685.6,3.72355]
[1730293316872,0.44923,2686.3,2685.6,3.72355]
[1730293317194,0.44923,2686.3,2685.8,3.72327]
[1730293317517,0.7699,2686.4,2685.5,0.5089]
[1730293317815,0.7699,2686.4,2685.9,3.72313]
[1730293318494,0.7699,2686.4,2685.9,3.72307]
[1730293319320,0.7699,2686.4,2685.7,3.72332]
[1730293319493,0.815,2686.4,2685.7,3.72332]
[1730293319693,0.453732,2686.3,2685.7,3.72332]
[1730293319897,0.453732,2686.3,2685.7,3.72342]
[1730293320331,0.453732,2686.3,2685.7,3.72334]
[1730293320624,0.815,2686.4,2685.7,3.72334]
[1730293320835,0.815,2686.4,2686.1,3.72279]
[1730293321043,0.815,2686.4,2686.0,3.723]
[1730293321385,0.815,2686.4,2686.1,3.72283]
[1730293321616,0.7853,2686.7,2686.2,3.72273]
[1730293322200,0.7853,2686.7,2686.1,3.72286]
[1730293322399,0.7853,2686.7,2685.8,3.72328]
[1730293322598,0.7853,2687.7,2686.8,3.72189]
[1730293322819,3.73064,2687.8,2686.9,3.72167]
[1730293322820,0.7853,2687.6,2686.9,3.72167]
[1730293323032,0.7853,2687.6,2686.8,3.72183]
[1730293323585,0.7853,2687.6,2687.0,3.72155]
[1730293323790,0.7853,2687.6,2686.6,0.07443664]
[1730293324006,3.7853,2687.6,2686.9,3.72174]
[1730293324265,3.7853,2687.6,2686.9,7.44342]
[1730293324398,0.7853,2687.6,2687.1,3.72147]
[1730293324925,0.7853,2687.6,2687.1,3.7214]
[1730293325707,0.7853,2687.6,2686.9,3.7217]
[1730293325893,0.7853,2687.6,2686.9,3.72163]
[1730293326097,0.7853,2687.6,2687.0,3.7216]
[1730293326609,0.7853,2687.6,2687.3,3.72112]
[1730293326851,0.7853,2687.6,2687.2,3.72134]
[1730293327337,0.7853,2687.6,2687.3,3.72113]
[1730293327636,0.7853,2687.6,2687.3,3.72111]
[1730293327804,0.7853,2687.6,2687.2,3.72134]
[1730293328207,0.7853,2687.6,2687.1,3.72142]
[1730293328409,0.7853,2687.6,2686.9,3.72175]
[1730293328410,1.235881,2687.6,2686.9,3.72175]
[1730293328719,3.72079,2687.6,2686.9,3.72175]
[1730293328930,0.7758,2687.5,2686.9,3.72175]
[1730293329799,0.7758,2687.5,2686.7,3.72195]
[1730293329999,0.7758,2687.5,2686.9,3.72172]
[1730293330237,4.946375,2687.5,2686.7,3.72197]
[1730293330570,0.757,2687.1,2686.4,3.72235]
[1730293330747,3.72151,2687.1,2686.4,3.72235]
[1730293330904,0.757,2687.0,2686.4,3.72235]
[1730293331100,0.757,2687.0,2686.2,3.72263]
[1730293331337,0.757,2687.0,2686.5,3.72231]
[1730293332401,0.757,2687.0,2686.6,3.72216]
[1730293332900,3.72061,2687.8,2686.9,3.72176]
[1730293333143,0.7973,2687.7,2687.0,3.72156]
[1730293333848,4.51802,2687.7,2687.0,3.72156]
[1730293334050,0.823863,2687.6,2687.0,3.72156]
[1730293334424,0.823863,2687.6,2686.6,4.23097]
[1730293334425,7.544653,2687.6,2686.6,4.23097]
[1730293334630,3.72155,2687.1,2686.4,3.72237]
[1730293334825,3.72155,2687.1,2685.6,3.7335]
[1730293334826,3.72197,2686.8,2685.4,7.95658]
[1730293335052,0.7919,2686.9,2685.7,3.72334]
[1730293335053,0.7919,2686.5,2685.7,3.72334]
[1730293335255,0.7919,2686.5,2685.6,3.72351]
[1730293335256,3.72244,2686.5,2685.6,3.72351]
[1730293335459,0.8059,2686.4,2685.8,3.72317]
[1730293335666,0.8059,2686.4,2685.6,0.423241]
[1730293335667,4.52841,2686.4,2685.6,4.146681]
[1730293335972,4.52837,2686.4,2685.7,3.72341]
[1730293336267,0.8059,2686.4,2685.6,4.146711]
[1730293336474,0.8162,2686.2,2685.6,4.146791]
[1730293336675,0.8162,2686.2,2685.7,3.7234]
[1730293336821,0.8162,2686.2,2685.6,0.423241]
[1730293337025,0.8162,2686.2,2685.7,3.72339]
[1730293337469,0.8162,2686.2,2685.6,0.423241]
[1730293337634,0.8162,2686.2,2685.7,3.7234]
[1730293337969,0.8162,2685.9,2685.1,3.72416]
[1730293338143,3.72329,2685.8,2685.1,3.72417]
[1730293338340,0.8162,2685.8,2685.3,3.72397]
[1730293338539,0.8162,2685.8,2685.1,3.72417]
[1730293338540,0.8162,2685.8,2685.1,0.07448299]
[1730293338739,0.8182,2686.4,2685.7,3.72342]
[1730293338941,1.272246,2686.4,2685.5,4.23249]
[1730293339263,1.272246,2686.4,2685.8,3.72326]
[1730293339628,1.272246,2686.4,2685.8,3.72322]
[1730293340043,0.7988,2686.3,2685.7,3.72339]
[1730293340325,0.7988,2686.3,2685.1,7.23308]
[1730293340326,0.7988,2686.3,2685.5,3.72367]
[1730293340545,3.7228,2686.2,2685.5,3.72367]
[1730293340753,0.7609,2686.1,2685.4,3.72376]
[1730293340943,0.7609,2686.0,2685.4,3.72376]
[1730293341156,0.7609,2686.0,2685.1,0.5089]
[1730293341157,0.7609,2685.9,2685.1,3.72414]
[1730293341330,0.448397,2685.8,2685.1,3.72414]
[1730293341531,0.7609,2685.7,2685.0,3.72438]
[1730293342069,0.8116,2685.6,2685.1,3.72424]
[1730293342972,0.8116,2685.6,2684.9,7.44891]
[1730293343310,0.8116,2685.6,2684.4,3.72515]
[1730293343311,3.72399,2685.3,2684.6,3.72486]
[1730293343612,3.72399,2685.3,2683.9,0.5089]
[1730293343613,3.72397,2685.3,2683.9,0.5089]
[1730293343765,0.7992,2685.0,2684.3,3.72536]
[1730293344097,0.7992,2685.0,2684.4,3.72522]
[1730293344299,0.7992,2685.0,2684.5,3.725]
[1730293344701,0.7992,2685.0,2684.4,3.72522]
[1730293344905,0.7992,2685.0,2684.5,3.72507]
[1730293345467,0.7992,2685.0,2684.7,3.7248]
[1730293345681,0.7992,2685.0,2684.8,3.72464]
[1730293345891,0.7944,2685.5,2684.8,3.72466]
[1730293346175,0.7944,2685.5,2684.6,3.72484]
[1730293346176,0.7944,2685.2,2684.6,3.72484]
[1730293346518,4.51851,2685.2,2684.5,3.72502]
[1730293346834,0.7904,2684.9,2684.2,3.7255]
[1730293347009,0.7904,2684.9,2684.0,3.72569]
[1730293347010,4.51507,2684.8,2684.0,3.72569]
[1730293347320,4.51507,2684.8,2684.1,3.72556]
[1730293347525,0.7904,2684.8,2684.0,3.72569]
[1730293347816,0.7904,2684.5,2683.9,3.72591]
[1730293348116,0.7904,2684.5,2683.6,4.29101627]
[1730293348117,3.72524,2684.4,2683.6,3.72622]
[1730293348282,0.7904,2684.3,2683.6,3.72622]
[1730293348624,4.51587,2684.3,2683.6,3.72626]
[1730293349324,4.51587,2684.3,2683.4,3.72648]
[1730293349325,0.7991,2684.2,2683.4,3.72648]
[1730293349571,0.7991,2684.0,2683.4,3.72648]
[1730293350276,0.7991,2684.0,2683.2,3.72681]
[1730293350432,3.72564,2684.1,2683.0,3.72709]
[1730293350433,0.7991,2683.7,2683.0,3.72709]
[1730293350765,0.7991,2683.7,2682.6,0.05591674]
[1730293350972,0.7991,2683.7,2682.9,3.72729]
[1730293350973,0.7991,2683.5,2682.9,3.72729]
[1730293351129,0.7991,2683.5,2683.1,3.72696]
[1730293351330,0.7991,2683.5,2683.3,3.72674]
[1730293351627,0.7991,2683.5,2683.3,3.72666]
[1730293351858,0.7767,2683.8,2683.6,3.72624]
[1730293352042,0.7767,2683.8,2683.5,3.72645]
[1730293352242,0.7767,2684.9,2683.8,4.23489]
[1730293352477,0.7767,2684.7,2683.9,0.423489]
[1730293352640,4.50151,2684.7,2684.0,3.72575]
[1730293352855,0.7767,2684.7,2684.1,3.72562]
[1730293353181,0.7767,2684.7,2683.9,3.72578]
[1730293353384,0.7651,2684.6,2683.5,4.23535]
[1730293353681,1.6327288,2684.6,2683.9,3.72583]
[1730293353847,0.7651,2684.6,2683.9,3.72583]
[1730293354043,0.7651,2684.6,2684.2,3.72543]
[1730293354579,0.7651,2684.6,2684.2,3.72541]
[1730293355137,3.72332,2685.8,2684.0,3.72578]
[1730293355138,0.7651,2685.5,2684.0,3.72578]
[1730293355444,0.7651,2685.5,2684.4,3.0]
[1730293355645,0.7651,2685.5,2685.2,3.72407]
[1730293355844,0.7651,2685.5,2685.0,3.72429]
[1730293356166,0.7651,2685.5,2685.1,3.72424]
[1730293357041,0.7651,2685.5,2684.9,3.72443]
[1730293357748,0.448873,2685.4,2684.7,7.44941]
[1730293357952,0.448873,2685.4,2684.8,3.72457]
[1730293358488,3.72385,2685.4,2684.6,3.72485]
[1730293358644,0.7652,2685.3,2684.6,3.72485]
[1730293358840,0.7652,2685.3,2684.4,3.72513]
[1730293358841,3.72412,2685.2,2684.4,3.72513]
[1730293359090,4.48925,2685.3,2684.5,3.72506]
[1730293359384,4.173065,2685.2,2684.4,3.72511]
[1730293359549,0.7661,2685.1,2684.2,3.72542]
[1730293359747,0.448925,2685.2,2684.8,3.72458]
[1730293359948,10.62,2685.4,2684.9,3.72445]
[1730293360152,0.7661,2685.5,2685.0,3.72431]
[1730293361661,0.7661,2685.5,2685.1,3.72423]
[1730293362662,0.7661,2685.5,2685.2,3.72409]
[1730293362972,0.7661,2685.5,2685.3,3.72388]
[1730293364509,3.72267,2686.3,2685.6,3.72355]
[1730293364663,1.161667,2686.2,2685.6,7.44703]
[1730293364863,1.161667,2686.2,2685.8,3.7232]
[1730293365085,0.7884,2686.2,2685.6,3.72347]
[1730293365302,0.7884,2686.2,2685.7,3.72341]
[1730293365870,0.7884,2686.2,2685.6,3.72347]
[1730293366168,0.7884,2686.2,2685.3,0.07447173]
[1730293366169,0.7884,2686.2,2685.7,3.72332]
[1730293367283,0.7884,2686.2,2685.8,3.72316]
[1730293367486,0.7884,2686.2,2686.0,3.72298]
[1730293368329,0.7884,2686.2,2685.2,0.07446447]
[1730293368330,0.791,2686.6,2685.9,3.72304]
[1730293368516,0.791,2686.6,2686.1,3.72285]
[1730293369007,0.791,2686.6,2686.1,3.72278]
[1730293369348,0.791,2686.6,2686.3,3.72247]
[1730293369498,0.791,2686.6,2686.0,3.72291]
[1730293369698,0.791,2686.6,2686.4,3.72241]
[1730293369939,0.791,2686.6,2686.5,3.72231]
[1730293370400,0.791,2686.6,2686.4,3.72241]
[1730293371042,0.791,2686.6,2686.4,7.44477]
[1730293371555,0.791,2686.6,2686.5,3.72231]
[1730293371703,0.8132,2686.9,2686.7,3.72195]
[1730293372414,0.7537,2687.1,2686.7,3.72195]
[1730293372937,0.7537,2687.1,2686.7,3.72202]
[1730293373144,0.58276237,2687.4,2687.0,3.72154]
[1730293373299,0.7537,2687.5,2687.1,3.72142]
[1730293373503,0.7537,2687.5,2687.0,3.72154]
[1730293373832,0.7537,2687.5,2687.4,3.72106]
[1730293374138,4.50166,2688.4,2687.5,3.72092]
[1730293374447,4.50166,2688.4,2687.5,3.72084]
[1730293374636,0.7819,2688.4,2687.2,3.72134]
[1730293374844,0.7819,2688.4,2687.7,3.72065]
[1730293375201,0.7819,2688.4,2687.4,3.72096]
[1730293375401,0.7819,2688.4,2687.5,3.72082]
[1730293375628,0.7819,2688.4,2687.3,0.372134]
[1730293375840,0.450152,2688.3,2687.6,3.72069]
[1730293376237,0.450152,2688.3,2687.6,3.72068]
[1730293376439,0.450152,2688.3,2687.5,3.72085]
[1730293376645,0.8256,2688.2,2687.4,0.5089]
[1730293376812,0.8256,2688.2,2687.8,3.7204]
[1730293378009,0.8256,2688.2,2688.0,3.72023]
[1730293378352,0.8036,2688.6,2688.2,3.71983]
[1730293378513,0.8036,2688.6,2688.0,3.72014]
[1730293378714,0.8036,2688.6,2688.3,3.71975]
[1730293378919,0.8036,2688.6,2688.0,3.72016]
[1730293379417,0.8036,2688.6,2687.6,3.72069]
[1730293379418,1.64596,2688.6,2687.6,3.72069]
[1730293379758,0.787,2688.5,2687.6,3.72069]
[1730293379916,0.787,2688.5,2687.8,7.44093]
[1730293380237,0.787,2688.5,2687.8,3.72044]
[1730293380410,0.787,2688.5,2687.8,0.744115]
[1730293380614,0.787,2688.5,2688.2,3.71988]
[1730293381065,0.787,2688.9,2688.4,3.71968]
[1730293381365,3.71949,2688.6,2687.9,0.5089]
[1730293381580,0.787,2688.4,2688.0,3.72023]
[1730293381923,0.787,2688.4,2688.0,3.72012]
[1730293382324,0.787,2688.4,2688.1,3.72009]
[1730293382538,0.7688,2688.8,2688.2,3.71994]
[1730293382749,1.817596,2688.8,2688.2,3.71994]
[1730293382937,0.7688,2688.8,2688.3,3.71979]
[1730293383538,0.05,2689.0,2688.3,0.07439893]
[1730293383746,0.05,2689.0,2688.9,3.71899]
[1730293384464,0.05,2689.0,2688.9,4.4628]
[1730293385329,0.05,2689.0,2688.9,4.9717]
[1730293387347,0.05,2689.0,2688.9,5.41786947]
[1730293387689,0.05,2689.0,2688.9,4.9717]
[1730293387852,0.05,2689.0,2688.9,5.04605895]
[1730293388190,1.35208842,2690.4,2689.2,0.5089]
[1730293388395,1.35208842,2690.4,2689.3,0.07435]
[1730293388597,0.7696,2690.4,2689.9,3.71752]
[1730293389298,1.218724,2690.4,2689.7,3.71781]
[1730293389477,1.218724,2690.4,2689.8,3.71761]
[1730293390450,1.218724,2690.4,2689.2,0.5089]
[1730293390451,0.7696,2690.4,2689.6,3.71793]
[1730293390651,4.48654,2690.4,2689.6,3.7179]
[1730293390883,0.7696,2689.8,2689.1,3.71861]
[1730293391051,0.448722,2689.7,2689.3,3.71836]
[1730293391253,0.7696,2689.8,2689.3,3.71836]
[1730293391471,0.7696,2689.8,2689.0,0.07436585]
[1730293391682,4.51102,2690.3,2689.6,3.71801]
[1730293391890,0.451102,2690.2,2689.9,3.71751]
[1730293392094,0.8371,2690.6,2689.9,3.71751]
[1730293392297,0.8371,2690.6,2689.9,7.43503]
[1730293392452,1.292462,2690.6,2689.9,7.43503]
[1730293392652,1.292462,2690.6,2690.2,3.71709]
[1730293392891,0.8371,2690.6,2689.8,3.71761]
[1730293393101,3.71686,2690.5,2689.8,3.534571]
[1730293393392,0.8371,2690.6,2689.5,0.5089]
[1730293393693,0.8371,2690.6,2690.1,3.71725]
[1730293393865,1.292449,2690.6,2689.9,7.43501]
[1730293394193,0.8371,2690.6,2689.5,0.5089]
[1730293394407,0.8371,2690.6,2690.1,3.71719]
[1730293395492,0.8371,2690.6,2690.2,3.71719]
[1730293395852,0.8371,2690.6,2690.2,3.71711]
[1730293396195,0.005,2690.6,2690.3,3.71703]
[1730293396393,0.005,2690.6,2690.2,3.71718]
[1730293396695,0.005,2690.6,2690.5,3.71678]
[1730293396904,0.005,2690.6,2690.5,3.79110675]
[1730293397052,0.005,2690.6,2690.5,4.30000675]
[1730293397504,0.005,2690.6,2690.5,4.22568]
[1730293397660,0.005,2690.6,2690.5,7.30999378]
[1730293397862,0.005,2690.6,2690.5,8.32936938]
[1730293398169,0.005,2691.5,2690.5,4.11368938]
[1730293398369,0.005,2691.5,2691.1,3.71587]
[1730293398691,0.005,2691.5,2691.2,3.7158]
[1730293398996,0.005,2691.5,2691.3,3.71557]
[1730293399559,0.005,2691.5,2691.4,3.71553]
[1730293399758,0.005,2691.5,2691.4,3.78984044]
[1730293400073,0.005,2691.5,2691.4,4.51696104]
[1730293401880,0.005,2691.5,2691.3,0.5089]
[1730293402205,0.005,2691.5,2691.4,3.71553]
[1730293402586,0.005,2691.5,2691.0,0.5089]
[1730293403103,0.005,2691.5,2691.1,3.71586]
[1730293403402,0.005,2691.5,2691.0,0.5089]
[1730293403608,0.005,2691.5,2690.9,3.71612]
[1730293403809,0.005,2691.5,2691.0,3.71601]
[1730293404103,0.005,2691.5,2691.0,3.71598]
[1730293404254,0.005,2691.5,2691.1,3.71592]
[1730293404455,0.005,2691.5,2691.1,3.79023049]
[1730293404809,0.005,2691.5,2691.1,3.71593]
[1730293405866,0.005,2691.5,2691.2,0.07431049]
[1730293406143,0.005,2691.5,2691.4,3.71553]
[1730293406458,0.7701,2692.6,2691.9,3.71481]
[1730293406638,0.7701,2692.6,2692.0,3.71463]
[1730293406931,0.7701,2692.6,2692.0,7.42927]
[1730293407102,0.7701,2692.6,2692.0,3.71463]
[1730293407510,3.71402,2692.5,2691.8,3.71488]
[1730293407860,0.7701,2692.6,2692.0,3.71462]
[1730293408154,3.71404,2692.5,2691.9,3.71484]
[1730293408513,3.71402,2692.5,2691.8,4.086368]
[1730293408735,3.71402,2692.5,2691.8,0.371488]
[1730293408911,3.71402,2692.5,2691.9,3.71481]
[1730293409363,0.819796,2692.5,2691.7,3.71512]
[1730293409514,0.819796,2692.5,2691.7,3.71504]
[1730293409515,3.71402,2692.5,2691.7,3.71504]
[1730293409714,3.71402,2692.5,2691.8,3.71491]
[1730293409948,3.71417,2692.4,2691.8,3.71491]
[1730293410258,3.71432,2692.3,2691.7,3.715]
[1730293410458,3.71404,2692.5,2691.7,4.0865]
[1730293410618,3.71404,2692.5,2691.8,3.7149]
[1730293410809,3.71436,2692.3,2691.7,4.08661]
[1730293411021,3.71436,2692.3,2691.7,4.0866]
[1730293411338,4.50309,2692.1,2691.5,3.71532]
[1730293411523,4.50309,2692.1,2691.6,3.71524]
[1730293411723,4.50309,2692.1,2691.4,0.5089]